fUSD/lending_fUSD_20250219
["ID","MTS","AMOUNT","RATE_DAILY","PERIOD"]
[353667140,1739986250990,-500.0,0.00013225,2]
[353667142,1739986250999,-528.1636163,0.00013225,2]
[353667144,1739986251009,-5677.91,0.00013225,2]
[353667146,1739986251019,-1011.73,0.00013225,2]
[353667148,1739986251028,-500.0,0.00013225,2]
[353667150,1739986251038,-655.63,0.00013225,2]
[353667152,1739986251047,-500.0,0.00013225,2]
[353667154,1739986251056,-500.0,0.00013225,2]
[353667156,1739986251066,-500.0,0.00013225,2]
[353667158,1739986251077,-500.0,0.00013225,2]
[353667160,1739986251086,-1333.44,0.00013225,2]
[353667162,1739986251095,-500.0,0.00013225,2]
[353667164,1739986251104,-500.0,0.00013225,2]
[353667166,1739986251114,-332.07425204,0.00013225,2]
[353667168,1739986251123,-1181.03,0.00013225,2]
[353667170,1739986251133,-500.0,0.00013225,2]
[353667172,1739986251142,-571.11,0.00013225,2]
[353667174,1739986251150,-964.09,0.00013225,2]
[353667176,1739986251160,-610.36,0.00013225,2]
[353667178,1739986251169,-1238.12,0.00013225,2]
[353667180,1739986251178,-808.82,0.00013225,2]
[353667182,1739986251187,-577.29,0.00013225,2]
[353667184,1739986251196,-1573.99,0.00013225,2]
[353667186,1739986251206,-500.39106564,0.00013225,2]
[353667188,1739986251215,-2104.52,0.00013225,2]
[353667190,1739986251225,-500.0,0.00013225,2]
[353667192,1739986251234,-500.0,0.00013225,2]
[353667194,1739986251243,-1369.55,0.00013225,2]
[353667196,1739986251252,-743.93,0.00013225,2]
[353667198,1739986251261,-1765.3,0.00013225,2]
[353667200,1739986251271,-508.19562705,0.00013225,2]
[353667202,1739986251280,-500.0,0.00013225,2]
[353667204,1739986251290,-1589.3,0.00013225,2]
[353667206,1739986251299,-500.0,0.00013225,2]
[353667208,1739986251308,-500.0,0.00013225,2]
[353667210,1739986251317,-1957.19,0.00013225,2]
[353667212,1739986251328,-248.93361116,0.00013225,2]
[353667214,1739986251338,-500.0,0.00013225,2]
[353667216,1739986251347,-500.0,0.00013226,2]
[353667218,1739986251357,-914.85,0.00013226,2]
[353667220,1739986251367,-957.7,0.00013226,2]
[353667222,1739986251376,-500.0,0.00013226,2]
[353667224,1739986251385,-784.32,0.00013226,2]
[353667226,1739986251395,-500.0,0.00013226,2]
[353667228,1739986251404,-500.0,0.00013226,2]
[353667230,1739986251414,-545.75,0.00013226,2]
[353667232,1739986251423,-818.05,0.00013226,2]
[353667234,1739986251432,-661.76,0.00013226,2]
[353667235,1739986251443,-829.86,0.00013226,2]
[353667236,1739986251452,-555.13,0.00013226,2]
[353667237,1739986251462,-500.0,0.00013226,2]
[353667238,1739986251471,-578.22,0.00013226,2]
[353667239,1739986251481,-500.0,0.00013226,2]
[353667240,1739986251491,-500.0,0.00013226,2]
[353667241,1739986251500,-546.47,0.00013226,2]
[353667242,1739986251510,-542.78,0.00013226,2]
[353667244,1739986251519,-500.0,0.00013226,2]
[353667246,1739986251529,-709.19,0.00013226,2]
[353667248,1739986251539,-500.0,0.00013226,2]
[353667250,1739986251549,-500.0,0.00013226,2]
[353667252,1739986251558,-1049.228999,0.00013226,2]
[353667254,1739986251568,-500.0,0.00013226,2]
[353667256,1739986251579,-753.57,0.00013226,2]
[353667258,1739986251588,-1042.21049,0.00013226,2]
[353667260,1739986251598,-704.45,0.00013226,2]
[353667262,1739986251607,-597.49,0.00013226,2]
[353667264,1739986251617,-679.86,0.00013226,2]
[353667266,1739986251627,-500.0,0.00013226,2]
[353667268,1739986251636,-500.0,0.00013226,2]
[353667270,1739986251646,-866.74,0.00013226,2]
[353667272,1739986251655,-500.0,0.00013226,2]
[353667274,1739986251665,-612.29,0.00013226,2]
[353667276,1739986251675,-500.0,0.00013226,2]
[353667278,1739986251685,-500.0,0.00013226,2]
[353667280,1739986251694,-500.0,0.00013226,2]
[353667282,1739986251703,-500.0,0.00013226,2]
[353667284,1739986251713,-423.07159981,0.00013226,2]
[353667286,1739986251722,-665.85,0.00013226,2]
[353667288,1739986251732,-579.79,0.00013226,2]
[353667290,1739986251741,-1018.2,0.00013226,2]
[353667292,1739986251751,-500.0,0.00013226,2]
[353667294,1739986251760,-670.1,0.00013226,2]
[353667296,1739986251770,-500.0,0.00013226,2]
[353667298,1739986251780,-561.35,0.00013226,2]
[353667300,1739986251790,-559.06,0.00013226,2]
[353667302,1739986251800,-500.0,0.00013226,2]
[353667304,1739986251809,-934.2,0.00013226,2]
[353667307,1739986251819,-500.0,0.00013226,2]
[353667309,1739986251830,-891.28,0.00013226,2]
[353667311,1739986251840,-1071.39,0.00013226,2]
[353667313,1739986251853,-500.0,0.00013226,2]
[353667314,1739986251863,-645.5,0.00013226,2]
[353667317,1739986251874,-868.71,0.00013226,2]
[353667319,1739986251885,-983.6,0.00013226,2]
[353667321,1739986251895,-500.0,0.00013226,2]
[353667323,1739986251906,-500.0,0.00013226,2]
[353667325,1739986251916,-500.0,0.00013226,2]
[353667327,1739986251927,-747.49,0.00013226,2]
[353667329,1739986251938,-997.06,0.00013226,2]
[353667331,1739986251947,-500.0,0.00013226,2]
[353667333,1739986251956,-1706.87,0.00013226,2]
[353667335,1739986251966,-984.05,0.00013226,2]
[353667337,1739986251976,-885.83,0.00013226,2]
[353667339,1739986251985,-716.96,0.00013226,2]
[353667341,1739986251995,-1707.94,0.00013226,2]
[353667343,1739986252005,-670.73,0.00013226,2]
[353667345,1739986252016,-500.0,0.00013226,2]
[353667347,1739986252026,-1519.95,0.00013226,2]
[353667349,1739986252036,-1511.83,0.00013226,2]
[353667351,1739986252046,-500.0,0.00013226,2]
[353667353,1739986252056,-2495.84,0.00013226,2]
[353667355,1739986252066,-1523.74,0.00013226,2]
[353667357,1739986252076,-1161.17,0.00013226,2]
[353667359,1739986252086,-907.67,0.00013226,2]
[353667361,1739986252096,-500.0,0.00013226,2]
[353667363,1739986252105,-500.0,0.00013226,2]
[353667365,1739986252115,-1214.87,0.00013226,2]
[353667367,1739986252125,-1383.54,0.00013226,2]
[353667369,1739986252135,-1080.37,0.00013226,2]
[353667371,1739986252145,-621.37,0.00013226,2]
[353667373,1739986252154,-718.62,0.00013226,2]
[353667375,1739986252165,-931.1,0.00013226,2]
[353667377,1739986252174,-2477.23,0.00013226,2]
[353667379,1739986252184,-500.0,0.00013226,2]
[353667382,1739986252194,-500.0,0.00013226,2]
[353667384,1739986252203,-1354.12,0.00013226,2]
[353667386,1739986252214,-1322.6,0.00013226,2]
[353667388,1739986252224,-1374.09,0.00013226,2]
[353667389,1739986252233,-1878.9,0.00013226,2]
[353667392,1739986252243,-837.67,0.00013226,2]
[353667394,1739986252253,-702.74,0.00013226,2]
[353667396,1739986252263,-2438.11,0.00013226,2]
[353667398,1739986252273,-816.81,0.00013226,2]
[353667400,1739986252282,-832.9,0.00013226,2]
[353667402,1739986252292,-2479.24,0.00013226,2]
[353667404,1739986252302,-639.81933796,0.00013226,2]
[353667406,1739986252312,-1394.1,0.00013226,2]
[353667408,1739986252322,-500.0,0.00013226,2]
[353667410,1739986252333,-1466.93,0.00013226,2]
[353667412,1739986252343,-1378.48,0.00013226,2]
[353667414,1739986252353,-1598.95,0.00013226,2]
[353667416,1739986252363,-1497.76,0.00013226,2]
[353667418,1739986252373,-2798.24,0.00013226,2]
[353667420,1739986252383,-1738.23,0.00013226,2]
[353667422,1739986252393,-500.0,0.00013226,2]
[353667424,1739986252402,-1783.2,0.00013226,2]
[353667426,1739986252411,-525.08,0.00013226,2]
[353667428,1739986252421,-7577.55,0.00013226,2]
[353667430,1739986252430,-716.42,0.00013226,2]
[353667432,1739986252441,-1154.43,0.00013226,2]
[353667434,1739986252452,-1812.51,0.00013226,2]
[353667436,1739986252462,-671.52,0.00013226,2]
[353667438,1739986252473,-805.69,0.00013226,2]
[353667440,1739986252483,-1182.97,0.00013226,2]
[353667443,1739986252494,-2266.81,0.00013226,2]
[353667445,1739986252503,-1237.55,0.00013226,2]
[353667447,1739986252513,-753.6,0.00013226,2]
[353667449,1739986252528,-655.78,0.00013226,2]
[353667451,1739986252538,-2002.57,0.00013226,2]
[353667453,1739986252548,-500.0,0.00013226,2]
[353667455,1739986252558,-1608.39,0.00013226,2]
[353667457,1739986252568,-1063.45,0.00013226,2]
[353667459,1739986252578,-1711.73,0.00013226,2]
[353667461,1739986252588,-843.47,0.00013226,2]
[353667463,1739986252597,-3867.58,0.00013226,2]
[353667465,1739986252608,-500.0,0.00013226,2]
[353667468,1739986252618,-2485.02,0.00013226,2]
[353667470,1739986252627,-919.63,0.00013226,2]
[353667472,1739986252637,-2253.67,0.00013226,2]
[353667474,1739986252649,-500.0,0.00013226,2]
[353667476,1739986252659,-1544.29,0.00013226,2]
[353667478,1739986252669,-500.0,0.00013226,2]
[353667480,1739986252679,-2345.74,0.00013226,2]
[353667482,1739986252689,-2658.26,0.00013226,2]
[353667484,1739986252699,-1776.39,0.00013226,2]
[353667486,1739986252709,-634.27,0.00013226,2]
[353667488,1739986252719,-1735.0,0.00013226,2]
[353667490,1739986252728,-886.63,0.00013226,2]
[353667492,1739986252737,-819.74,0.00013226,2]
[353667494,1739986252747,-883.15,0.00013226,2]
[353667496,1739986252756,-1658.32,0.00013226,2]
[353667498,1739986252766,-944.46,0.00013226,2]
[353667500,1739986252776,-1418.8,0.00013226,2]
[353667502,1739986252786,-500.0,0.00013226,2]
[353667504,1739986252796,-2069.19,0.00013226,2]
[353667506,1739986252805,-1358.04,0.00013226,2]
[353667508,1739986252816,-819.06,0.00013226,2]
[353667510,1739986252827,-500.0,0.00013226,2]
[353667512,1739986252837,-500.0,0.00013227,2]
[353667514,1739986252850,-500.0,0.00013227,2]
[353667516,1739986252860,-500.0,0.00013227,2]
[353667518,1739986252870,-500.0,0.00013227,2]
[353667520,1739986252880,-686.93,0.00013227,2]
[353667522,1739986252891,-500.0,0.00013227,2]
[353667524,1739986252902,-500.0,0.00013227,2]
[353667525,1739986252912,-500.0,0.00013227,2]
[353667528,1739986252923,-568.85,0.00013227,2]
[353667530,1739986252933,-500.0,0.00013227,2]
[353667532,1739986252944,-500.0,0.00013227,2]
[353667534,1739986252954,-500.0,0.00013227,2]
[353667536,1739986252964,-500.0,0.00013227,2]
[353667538,1739986252974,-500.0,0.00013227,2]
[353667540,1739986252984,-496.92908066,0.00013227,2]
[353667541,1739986252994,-500.0,0.00013227,2]
[353667543,1739986253005,-500.0,0.00013227,2]
[353667545,1739986253015,-500.0,0.00013227,2]
[353667547,1739986253025,-500.0,0.00013227,2]
[353667549,1739986253035,-500.0,0.00013227,2]
[353667551,1739986253045,-500.0,0.00013227,2]
[353667554,1739986253055,-500.0,0.00013227,2]
[353667556,1739986253065,-500.0,0.00013227,2]
[353667558,1739986253075,-500.0,0.00013227,2]
[353667559,1739986253084,-658.58,0.00013227,2]
[353667562,1739986253094,-500.0,0.00013227,2]
[353667563,1739986253104,-500.0,0.00013227,2]
[353667566,1739986253114,-500.0,0.00013227,2]
[353667568,1739986253125,-486.52879556,0.00013227,2]
[353667570,1739986253134,-661.04,0.00013227,2]
[353667571,1739986253144,-500.0,0.00013227,2]
[353667574,1739986253154,-158.79271312,0.00013227,2]
[353667624,1739986253757,-461.04093333,0.00011205,2]
[353667627,1739986253769,-768.3756327,0.00011205,2]
[353667719,1739986254679,-500.0,0.00010958,2]
[353667721,1739986254689,-586.48343397,0.00011205,2]
[353667723,1739986254698,-500.0,0.00011205,2]
[353667725,1739986254708,-1815.9,0.00011287,2]
[353667727,1739986254718,-500.0,0.00011287,2]
[353667729,1739986254728,-1815.9,0.00011369,2]
[353667731,1739986254737,-500.0,0.00011369,2]
[353667733,1739986254747,-1815.9,0.00011452,2]
[353667735,1739986254756,-500.0,0.00011452,2]
[353667737,1739986254766,-1815.9,0.00011534,2]
[353667739,1739986254775,-500.0,0.00011534,2]
[353667741,1739986254785,-1815.9,0.00011616,2]
[353667743,1739986254794,-500.0,0.00011616,2]
[353667745,1739986254804,-942.36,0.00011698,2]
[353667746,1739986254813,-1815.9,0.00011698,2]
[353667748,1739986254823,-500.0,0.00011698,2]
[353667750,1739986254834,-942.36,0.0001178,2]
[353667752,1739986254844,-1815.9,0.0001178,2]
[353667754,1739986254855,-500.0,0.0001178,2]
[353667756,1739986254865,-942.36,0.00011863,2]
[353667758,1739986254875,-1815.9,0.00011863,2]
[353667760,1739986254885,-500.0,0.00011863,2]
[353667761,1739986254894,-942.36,0.00011945,2]
[353667762,1739986254904,-500.0,0.00011945,2]
[353667763,1739986254913,-1815.9,0.00011945,2]
[353667764,1739986254923,-942.36,0.00012027,2]
[353667765,1739986254933,-500.0,0.00012027,2]
[353667766,1739986254942,-1815.9,0.00012027,2]
[353667767,1739986254951,-942.36,0.00012109,2]
[353667768,1739986254961,-500.0,0.00012109,2]
[353667770,1739986254971,-1815.9,0.00012109,2]
[353667772,1739986254980,-942.36,0.00012191,2]
[353667774,1739986254991,-1815.9,0.00012191,2]
[353667776,1739986255000,-500.0,0.00012191,2]
[353667778,1739986255010,-942.36,0.00012273,2]
[353667780,1739986255019,-1815.9,0.00012273,2]
[353667782,1739986255028,-343.37,0.00012273,2]
[353667783,1739986255037,-942.36,0.00012356,2]
[353667785,1739986255047,-1815.9,0.00012356,2]
[353667787,1739986255056,-942.36,0.00012438,2]
[353667789,1739986255066,-1815.9,0.00012438,2]
[353667791,1739986255076,-942.36,0.0001252,2]
[353667792,1739986255085,-1815.9,0.0001252,2]
[353667794,1739986255095,-942.36,0.00012602,2]
[353667796,1739986255104,-942.36,0.00012684,2]
[353667798,1739986255113,-942.36,0.00012767,2]
[353667800,1739986255123,-942.45678238,0.00012849,2]
[353667802,1739986255133,-1370.86,0.00013144,2]
[353667804,1739986255142,-505.91123941,0.00013144,2]
[353667806,1739986255151,-1370.86,0.00013226,2]
[353667808,1739986255161,-438.92728688,0.00013227,2]
[353667809,1739986255170,-500.0,0.00013227,2]
[353667810,1739986255179,-500.0,0.00013227,2]
[353667811,1739986255188,-500.0,0.00013227,2]
[353667812,1739986255197,-242.01224704,0.00013227,2]
[353667813,1739986255207,-500.0,0.00013227,2]
[353667814,1739986255216,-564.33,0.00013227,2]
[353667815,1739986255225,-500.0,0.00013227,2]
[353667816,1739986255235,-637.01091545,0.00013227,2]
[353667817,1739986255244,-500.0,0.00013227,2]
[353667818,1739986255253,-500.0,0.00013227,2]
[353667819,1739986255262,-500.0,0.00013227,2]
[353667820,1739986255270,-661.49,0.00013227,2]
[353667821,1739986255279,-500.0,0.00013227,2]
[353667822,1739986255287,-500.0,0.00013227,2]
[353667823,1739986255295,-675.05,0.00013227,2]
[353667824,1739986255304,-1124.83,0.00013227,2]
[353667825,1739986255313,-630.22,0.00013227,2]
[353667826,1739986255322,-500.0,0.00013227,2]
[353667827,1739986255332,-500.0,0.00013227,2]
[353667828,1739986255342,-1291.26,0.00013227,2]
[353667829,1739986255351,-537.35,0.00013227,2]
[353667830,1739986255360,-1422.33,0.00013227,2]
[353667831,1739986255370,-500.0,0.00013227,2]
[353667832,1739986255379,-500.0,0.00013227,2]
[353667833,1739986255389,-974.24,0.00013227,2]
[353667834,1739986255399,-725.45,0.00013227,2]
[353667835,1739986255408,-823.39,0.00013227,2]
[353667836,1739986255418,-500.0,0.00013227,2]
[353667837,1739986255427,-500.0,0.00013227,2]
[353667838,1739986255437,-500.0,0.00013227,2]
[353667840,1739986255447,-642.67,0.00013227,2]
[353667842,1739986255456,-1419.73,0.00013227,2]
[353667844,1739986255465,-1015.36,0.00013227,2]
[353667846,1739986255475,-1332.38,0.00013227,2]
[353667848,1739986255485,-582.99,0.00013227,2]
[353667850,1739986255495,-882.66,0.00013227,2]
[353667852,1739986255504,-1132.48,0.00013227,2]
[353667854,1739986255513,-514.24,0.00013227,2]
[353667856,1739986255523,-712.93,0.00013227,2]
[353667858,1739986255534,-500.0,0.00013227,2]
[353667860,1739986255543,-500.0,0.00013227,2]
[353667862,1739986255553,-729.83,0.00013227,2]
[353667864,1739986255563,-585.17,0.00013227,2]
[353667866,1739986255572,-538.12,0.00013227,2]
[353667868,1739986255582,-500.0,0.00013227,2]
[353667870,1739986255591,-604.77294542,0.00013229,2]
[353667872,1739986255601,-508.96,0.00013276,2]
[353667874,1739986255611,-647.51,0.00013276,2]
[353667876,1739986255620,-606.54,0.00013276,2]
[353667878,1739986255629,-181.09911589,0.00013276,2]
[353668279,1739986694857,152.95,8.767e-05,2]
[353668281,1739986964532,-390.2,0.0001036,2]
[353668282,1739986964553,-1048.68,0.00010416,2]
[353668283,1739986964574,-250.0,0.00010503,2]
[353668284,1739986964596,-3842.3114,0.00010756,2]
[353668285,1739986964617,-2491.0,0.000108,3]
[353668286,1739986964639,-314.16262303,0.0001094,2]
[353668287,1739986964660,-150.0,0.00010957,2]
[353668288,1739986964680,-500.0,0.00010958,2]
[353668289,1739986964701,-500.0,0.00010958,2]
[353668290,1739986964722,-500.0,0.00010958,2]
[353668291,1739986964742,-500.0,0.00010958,2]
[353668292,1739986964763,-500.0,0.00010958,2]
[353668293,1739986964784,-556.34645191,0.00010958,2]
[353668294,1739986964805,-500.0,0.00010958,2]
[353668295,1739986964826,-500.0,0.00010958,2]
[353668296,1739986964846,-500.0,0.00010958,2]
[353668297,1739986964865,-500.0,0.00010958,2]
[353668298,1739986964891,-610.32,0.00010958,2]
[353668299,1739986964912,-500.0,0.00010958,2]
[353668300,1739986964932,-500.0,0.00010958,2]
[353668301,1739986964954,-500.0,0.00010958,2]
[353668302,1739986964976,-650.1,0.00010958,2]
[353668303,1739986964997,-500.0,0.00010958,2]
[353668304,1739986965017,-500.0,0.00010958,2]
[353668305,1739986965038,-500.0,0.00010958,2]
[353668306,1739986965074,-500.0,0.00010958,2]
[353668307,1739986965100,-500.0,0.00010958,2]
[353668308,1739986965124,-675.1,0.00010958,2]
[353668309,1739986965150,-500.0,0.00010958,2]
[353668310,1739986965175,-500.0,0.00010958,2]
[353668311,1739986965201,-500.0,0.00010958,2]
[353668312,1739986965226,-572.6,0.00010958,2]
[353668313,1739986965250,-722.17,0.00010958,2]
[353668314,1739986965275,-500.0,0.00010958,2]
[353668315,1739986965297,-500.0,0.00010958,2]
[353668316,1739986965317,-500.0,0.00010958,2]
[353668317,1739986965338,-651.53,0.00010958,2]
[353668318,1739986965361,-500.0,0.00010958,2]
[353668319,1739986965382,-500.0,0.00010958,2]
[353668320,1739986965410,-830.63,0.00010958,2]
[353668321,1739986965431,-500.0,0.00010958,2]
[353668322,1739986965456,-500.0,0.00010958,2]
[353668323,1739986965478,-548.03,0.00010958,2]
[353668324,1739986965501,-624.44,0.00010958,2]
[353668325,1739986965523,-500.0,0.00010958,2]
[353668326,1739986965546,-586.77,0.00010958,2]
[353668327,1739986965571,-500.0,0.00010958,2]
[353668328,1739986965595,-500.0,0.00010958,2]
[353668329,1739986965617,-500.0,0.00010958,2]
[353668330,1739986965638,-481.49599633,0.00010958,2]
[353668331,1739986965660,-593.92,0.00010958,2]
[353668332,1739986965681,-500.0,0.00010958,2]
[353668333,1739986965703,-500.0,0.00010958,2]
[353668334,1739986965725,-492.56927776,0.00010958,2]
[353668335,1739986965746,-500.0,0.00010958,2]
[353668336,1739986965768,-625.5354435,0.00010958,2]
[353668337,1739986965789,-500.0,0.00010958,2]
[353668338,1739986965810,-500.0,0.00010958,2]
[353668339,1739986965832,-500.0,0.00010958,2]
[353668340,1739986965853,-500.0,0.00010958,2]
[353668341,1739986965876,-500.0,0.00010958,2]
[353668342,1739986965899,-500.0,0.00010958,2]
[353668343,1739986965921,-502.95,0.00010958,2]
[353668344,1739986965944,-423.07159981,0.00010958,2]
[353668345,1739986965966,-500.0,0.00010958,2]
[353668346,1739986965991,-500.0,0.00010958,2]
[353668347,1739986966013,-665.85,0.00010958,2]
[353668348,1739986966036,-500.0,0.00010958,2]
[353668349,1739986966059,-579.79,0.00010958,2]
[353668350,1739986966080,-500.0,0.00010958,2]
[353668351,1739986966102,-337.15969562,0.00010958,2]
[353668352,1739986966127,-601.36,0.00010958,2]
[353668353,1739986966150,-1018.2,0.00010958,2]
[353668354,1739986966172,-670.1,0.00010958,2]
[353668355,1739986966194,-684.29,0.00010958,2]
[353668356,1739986966216,-500.0,0.00010958,2]
[353668357,1739986966238,-501.48,0.00010958,2]
[353668358,1739986966259,-559.06,0.00010958,2]
[353668359,1739986966282,-561.35,0.00010958,2]
[353668360,1739986966304,-500.0,0.00010958,2]
[353668361,1739986966326,-500.0,0.00010958,2]
[353668362,1739986966347,-509.07,0.00010958,2]
[353668363,1739986966373,-500.0,0.00010958,2]
[353668364,1739986966394,-500.0,0.00010958,2]
[353668365,1739986966416,-934.2,0.00010958,2]
[353668366,1739986966438,-500.0,0.00010958,2]
[353668367,1739986966461,-217.64186471,0.00010958,2]
[353668368,1739986966483,-500.0,0.00010958,2]
[353668369,1739986966504,-500.0,0.00010958,2]
[353668370,1739986966525,-500.0,0.00010958,2]
[353668371,1739986966547,-500.0,0.00010958,2]
[353668372,1739986966569,-500.0,0.00010958,2]
[353668373,1739986966907,-891.28,0.00010958,2]
[353668374,1739986966929,-500.0,0.00010958,2]
[353668375,1739986966952,-500.0,0.00010958,2]
[353668376,1739986966973,-500.0,0.00010958,2]
[353668377,1739986966994,-500.0,0.00010958,2]
[353668378,1739986967015,-500.0,0.00010958,2]
[353668379,1739986967036,-500.0,0.00010958,2]
[353668380,1739986967058,-1071.39,0.00010958,2]
[353668381,1739986967079,-500.0,0.00010958,2]
[353668382,1739986967100,-500.0,0.00010958,2]
[353668383,1739986967127,-500.0,0.00010958,2]
[353668384,1739986967151,-645.5,0.00010958,2]
[353668385,1739986967172,-500.0,0.00010958,2]
[353668386,1739986967194,-500.0,0.00010958,2]
[353668387,1739986967215,-983.6,0.00010958,2]
[353668388,1739986967236,-500.0,0.00010958,2]
[353668389,1739986967256,-500.0,0.00010958,2]
[353668390,1739986967278,-500.0,0.00010958,2]
[353668391,1739986967299,-868.71,0.00010958,2]
[353668392,1739986967320,-500.0,0.00010958,2]
[353668393,1739986967342,-500.0,0.00010958,2]
[353668394,1739986967362,-457.14861368,0.00010958,2]
[353668395,1739986967383,-527.78087388,0.00010958,2]
[353668396,1739986967406,-502.44,0.00010958,2]
[353668397,1739986967428,-500.0,0.00010958,2]
[353668398,1739986967450,-500.0,0.00010958,2]
[353668399,1739986967472,-500.0,0.00010958,2]
[353668400,1739986967492,-500.0,0.00010958,2]
[353668401,1739986967515,-747.49,0.00010958,2]
[353668402,1739986967537,-500.0,0.00010958,2]
[353668403,1739986967559,-500.0,0.00010958,2]
[353668404,1739986967580,-500.0,0.00010958,2]
[353668405,1739986967602,-885.83,0.00010958,2]
[353668406,1739986967626,-500.0,0.00010958,2]
[353668407,1739986967649,-500.0,0.00010958,2]
[353668408,1739986967671,-500.0,0.00010958,2]
[353668409,1739986967690,-500.0,0.00010958,2]
[353668410,1739986967712,-984.05,0.00010958,2]
[353668411,1739986967733,-500.0,0.00010958,2]
[353668412,1739986967754,-500.0,0.00010958,2]
[353668413,1739986967774,-535.48,0.00010958,2]
[353668414,1739986967795,-500.0,0.00010958,2]
[353668415,1739986967816,-500.0,0.00010958,2]
[353668416,1739986967837,-500.0,0.00010958,2]
[353668417,1739986967859,-670.73,0.00010958,2]
[353668418,1739986967881,-500.0,0.00010958,2]
[353668419,1739986967903,-500.0,0.00010958,2]
[353668420,1739986967926,-716.96,0.00010958,2]
[353668421,1739986967947,-500.0,0.00010958,2]
[353668422,1739986967970,-500.0,0.00010958,2]
[353668423,1739986967991,-500.0,0.00010958,2]
[353668424,1739986968012,-500.0,0.00010958,2]
[353668425,1739986968034,-500.0,0.00010958,2]
[353668426,1739986968055,-500.0,0.00010958,2]
[353668427,1739986968077,-500.0,0.00010958,2]
[353668428,1739986968098,-500.0,0.00010958,2]
[353668429,1739986968125,-500.0,0.00010958,2]
[353668430,1739986968149,-500.0,0.00010958,2]
[353668431,1739986968172,-603.61,0.00010958,2]
[353668432,1739986968194,-503.99618225,0.00010958,2]
[353668433,1739986968215,-500.0,0.00010958,2]
[353668434,1739986968238,-750.72,0.00010958,2]
[353668435,1739986968260,-907.67,0.00010958,2]
[353668436,1739986968282,-500.0,0.00010958,2]
[353668437,1739986968304,-500.0,0.00010958,2]
[353668438,1739986968326,-797.8,0.00010958,2]
[353668439,1739986968346,-502.27247511,0.00010958,2]
[353668440,1739986968368,-500.0,0.00010958,2]
[353668441,1739986968390,-500.0,0.00010958,2]
[353668442,1739986968411,-500.0,0.00010958,2]
[353668443,1739986968432,-500.0,0.00010958,2]
[353668444,1739986968457,-1706.87,0.00010958,2]
[353668445,1739986968478,-500.0,0.00010958,2]
[353668446,1739986968500,-500.0,0.00010958,2]
[353668447,1739986968521,-272.54798089,0.00010958,2]
[353668448,1739986968543,-621.37,0.00010958,2]
[353668449,1739986968564,-500.0,0.00010958,2]
[353668450,1739986968585,-500.0,0.00010958,2]
[353668451,1739986968608,-500.0,0.00010958,2]
[353668452,1739986968629,-500.0,0.00010958,2]
[353668453,1739986968650,-500.0,0.00010958,2]
[353668454,1739986968672,-500.0,0.00010958,2]
[353668455,1739986968693,-832.9,0.00010958,2]
[353668456,1739986968716,-500.0,0.00010958,2]